[Event "*** SCC Grand Prix: Titled Tuesday Blitz"]
[Site "Chess.com"]
[Date "2020.06.09"]
[Round "4"]
[White "chessfrendz"]
[Black "m_ezat"]
[Result "0-1"]
[WhiteElo "2320"]
[BlackElo "2473"]
[TimeControl "180+1"]
[EndTime "9:37:58 PDT"]
[Termination "m_ezat won on time"]

1. d4 {[%clk 0:03:00.9]} 1... Nf6 {[%clk 0:02:59.5]} 2. Nf3 {[%clk 0:03:00.1]}
2... g6 {[%clk 0:02:59.7]} 3. c4 {[%clk 0:02:59.5]} 3... Bg7 {[%clk 0:03:00]} 4.
Nc3 {[%clk 0:02:58.6]} 4... O-O {[%clk 0:03:00.4]} 5. e4 {[%clk 0:02:57.9]} 5...
d6 {[%clk 0:02:58.9]} 6. Be2 {[%clk 0:02:57.8]} 6... e5 {[%clk 0:02:50.8]} 7.
O-O {[%clk 0:02:55.7]} 7... Nc6 {[%clk 0:02:36.3]} 8. d5 {[%clk 0:02:55.4]} 8...
Ne7 {[%clk 0:02:28.6]} 9. Ne1 {[%clk 0:02:53.9]} 9... Nd7 {[%clk 0:02:14.1]} 10.
Be3 {[%clk 0:02:52.6]} 10... f5 {[%clk 0:02:13]} 11. f3 {[%clk 0:02:52.6]} 11...
f4 {[%clk 0:02:10.7]} 12. Bf2 {[%clk 0:02:52.5]} 12... g5 {[%clk 0:02:11.3]} 13.
a4 {[%clk 0:02:51.5]} 13... a5 {[%clk 0:02:09.9]} 14. Rc1 {[%clk 0:02:47.4]}
14... b6 {[%clk 0:01:51.6]} 15. g4 {[%clk 0:02:45.9]} 15... fxg3 {[%clk
0:01:49.5]} 16. hxg3 {[%clk 0:02:44.6]} 16... h5 {[%clk 0:01:48.1]} 17. Ng2
{[%clk 0:02:36.9]} 17... Nf6 {[%clk 0:01:47.6]} 18. Be3 {[%clk 0:02:30.6]} 18...
Bh6 {[%clk 0:01:42.8]} 19. Qd2 {[%clk 0:02:29.3]} 19... Nh7 {[%clk 0:01:40.8]}
20. Nd1 {[%clk 0:01:54.9]} 20... Ng6 {[%clk 0:01:38.6]} 21. Nf2 {[%clk
0:01:52.4]} 21... Bg7 {[%clk 0:01:35]} 22. f4 {[%clk 0:01:38.5]} 22... gxf4
{[%clk 0:01:33.8]} 23. gxf4 {[%clk 0:01:37.9]} 23... exf4 {[%clk 0:01:33.3]} 24.
Nxf4 {[%clk 0:01:35.9]} 24... Nxf4 {[%clk 0:01:30.7]} 0-1

[Event "*** SCC Grand Prix: Titled Tuesday Blitz"]
[Site "Chess.com"]
[Date "2020.06.09"]
[Round "4"]
[White "Makswolf200817"]
[Black "DonPreuss"]
[Result "1-0"]
[WhiteElo "2426"]
[BlackElo "2211"]
[TimeControl "180+1"]
[EndTime "9:37:58 PDT"]
[Termination "Makswolf200817 won by resignation"]

1. Nf3 {[%clk 0:03:00.9]} 1... Nc6 {[%clk 0:02:53.9]} 2. d4 {[%clk 0:03:00]}
2... d6 {[%clk 0:02:54.3]} 3. g3 {[%clk 0:02:56.3]} 3... g6 {[%clk 0:02:53.9]}
4. Bg2 {[%clk 0:02:55.7]} 4... Bg7 {[%clk 0:02:53.7]} 5. c4 {[%clk 0:02:54.6]}
5... e5 {[%clk 0:02:53.2]} 6. e3 {[%clk 0:02:41.9]} 6... Nge7 {[%clk 0:02:50]}
7. O-O {[%clk 0:02:41]} 7... e4 {[%clk 0:02:35.7]} 8. Nfd2 {[%clk 0:02:39]} 8...
f5 {[%clk 0:02:35.2]} 9. f3 {[%clk 0:02:39.1]} 9... exf3 {[%clk 0:02:30.1]} 10.
Nxf3 {[%clk 0:02:38.2]} 10... O-O {[%clk 0:02:27.9]} 11. Nc3 {[%clk 0:02:36.8]}
11... h6 {[%clk 0:02:00.3]} 12. a3 {[%clk 0:02:21.9]} 12... g5 {[%clk
0:01:59.7]} 13. b4 {[%clk 0:02:20.6]} 13... Ng6 {[%clk 0:01:59.9]} 14. b5 {[%clk
0:02:18.5]} 14... Nce7 {[%clk 0:01:59.1]} 15. Bb2 {[%clk 0:02:13.3]} 15... f4
{[%clk 0:01:56.2]} 16. exf4 {[%clk 0:02:07.7]} 16... gxf4 {[%clk 0:01:56.1]} 17.
Qe1 {[%clk 0:01:49.8]} 17... Nf5 {[%clk 0:01:50.2]} 18. Ne2 {[%clk 0:01:48.3]}
18... Ne3 {[%clk 0:01:48.6]} 19. Nxf4 {[%clk 0:01:38.5]} 19... Nxg2 {[%clk
0:01:09.7]} 20. Nxg2 {[%clk 0:01:36]} 20... Bh3 {[%clk 0:01:08.5]} 21. Qe4
{[%clk 0:01:32.4]} 21... Qf6 {[%clk 0:00:53.2]} 22. Nfh4 {[%clk 0:01:20.5]}
22... Nxh4 {[%clk 0:00:41.5]} 23. Rxf6 {[%clk 0:01:16.8]} 23... Nxg2 {[%clk
0:00:41.2]} 24. Rxf8+ {[%clk 0:01:15.3]} 24... Rxf8 {[%clk 0:00:41.8]} 25. Rf1
{[%clk 0:01:07.3]} 25... Rxf1+ {[%clk 0:00:30.4]} 26. Kxf1 {[%clk 0:01:08.2]}
26... Nf4+ {[%clk 0:00:26.3]} 27. Kg1 {[%clk 0:01:05]} 27... Nh5 {[%clk
0:00:26.5]} 28. Qe8+ {[%clk 0:01:01.9]} 1-0

[Event "*** SCC Grand Prix: Titled Tuesday Blitz"]
[Site "Chess.com"]
[Date "2020.06.09"]
[Round "4"]
[White "Kilpkonn"]
[Black "MathiasWomacka"]
[Result "0-1"]
[WhiteElo "2025"]
[BlackElo "2399"]
[TimeControl "180+1"]
[EndTime "9:38:00 PDT"]
[Termination "MathiasWomacka won by resignation"]

1. e4 {[%clk 0:03:00.9]} 1... c5 {[%clk 0:03:00]} 2. Nf3 {[%clk 0:02:59.6]} 2...
d6 {[%clk 0:03:00.1]} 3. Nc3 {[%clk 0:02:58]} 3... Nf6 {[%clk 0:02:59.5]} 4. d4
{[%clk 0:02:57.6]} 4... cxd4 {[%clk 0:03:00.4]} 5. Nxd4 {[%clk 0:02:57.4]} 5...
a6 {[%clk 0:03:00.6]} 6. g3 {[%clk 0:02:56.8]} 6... e5 {[%clk 0:03:00]} 7. Nde2
{[%clk 0:02:55.5]} 7... Nbd7 {[%clk 0:02:58.4]} 8. Bg2 {[%clk 0:02:55.4]} 8...
b5 {[%clk 0:02:56.7]} 9. a3 {[%clk 0:02:54.6]} 9... Be7 {[%clk 0:02:56.3]} 10.
O-O {[%clk 0:02:54.4]} 10... Bb7 {[%clk 0:02:56.4]} 11. h3 {[%clk 0:02:54]}
11... Nc5 {[%clk 0:02:37]} 12. f4 {[%clk 0:02:08.5]} 12... Ncxe4 {[%clk
0:02:20.8]} 13. Nxe4 {[%clk 0:01:47.7]} 13... Nxe4 {[%clk 0:02:14.4]} 14. fxe5
{[%clk 0:01:27.1]} 14... dxe5 {[%clk 0:02:13.1]} 15. Qe1 {[%clk 0:01:16.8]}
15... O-O {[%clk 0:01:57.7]} 16. Be3 {[%clk 0:00:57.6]} 16... Qc7 {[%clk
0:01:51.2]} 17. c3 {[%clk 0:00:55.6]} 17... Rad8 {[%clk 0:01:42.3]} 18. a4
{[%clk 0:00:41.1]} 18... Bc5 {[%clk 0:01:28.3]} 19. Bxc5 {[%clk 0:00:36.4]}
19... Nxc5 {[%clk 0:01:26]} 20. axb5 {[%clk 0:00:29.9]} 20... Nd3 {[%clk
0:01:07]} 21. Qd2 {[%clk 0:00:15.6]} 21... Bxg2 {[%clk 0:01:05.5]} 22. Kxg2
{[%clk 0:00:13.9]} 22... Nf4+ {[%clk 0:01:04.6]} 0-1

[Event "*** SCC Grand Prix: Titled Tuesday Blitz"]
[Site "Chess.com"]
[Date "2020.06.09"]
[Round "4"]
[White "Susal_De_Silva"]
[Black "MoonlighT89"]
[Result "0-1"]
[WhiteElo "2371"]
[BlackElo "2566"]
[TimeControl "180+1"]
[EndTime "9:38:04 PDT"]
[Termination "MoonlighT89 won by resignation"]

1. e4 {[%clk 0:03:00.9]} 1... c5 {[%clk 0:02:59.8]} 2. Nf3 {[%clk 0:03:01]} 2...
e6 {[%clk 0:03:00.3]} 3. d4 {[%clk 0:03:01]} 3... cxd4 {[%clk 0:03:01.2]} 4.
Nxd4 {[%clk 0:03:01.4]} 4... Nc6 {[%clk 0:03:01.9]} 5. Be2 {[%clk 0:03:01.7]}
5... Nf6 {[%clk 0:02:59.9]} 6. Nc3 {[%clk 0:03:02.2]} 6... Qc7 {[%clk
0:02:59.6]} 7. O-O {[%clk 0:03:01.3]} 7... Be7 {[%clk 0:03:00.1]} 8. Be3 {[%clk
0:03:00.8]} 8... O-O {[%clk 0:03:00.1]} 9. Ndb5 {[%clk 0:02:54.8]} 9... Qb8
{[%clk 0:02:59.5]} 10. a4 {[%clk 0:02:51.5]} 10... b6 {[%clk 0:02:52.6]} 11. f4
{[%clk 0:02:46.6]} 11... d6 {[%clk 0:02:51.9]} 12. Bf3 {[%clk 0:02:41.5]} 12...
Bb7 {[%clk 0:02:50.4]} 13. Qd2 {[%clk 0:02:30.1]} 13... a6 {[%clk 0:02:50.2]}
14. Na3 {[%clk 0:02:30]} 14... Qc7 {[%clk 0:02:48.8]} 15. Nc4 {[%clk 0:02:25.8]}
15... Nd7 {[%clk 0:02:48.6]} 16. Rfd1 {[%clk 0:02:21.6]} 16... Rac8 {[%clk
0:02:39.7]} 17. Nxd6 {[%clk 0:02:18]} 17... Bxd6 {[%clk 0:02:30.9]} 18. Qxd6
{[%clk 0:02:18.1]} 18... Nc5 {[%clk 0:02:21.5]} 19. b4 {[%clk 0:01:59]} 19...
Nxb4 {[%clk 0:02:13.2]} 20. Qxc7 {[%clk 0:01:53]} 20... Rxc7 {[%clk 0:02:12.5]}
21. a5 {[%clk 0:01:51.1]} 21... b5 {[%clk 0:02:00.1]} 22. Rac1 {[%clk
0:01:46.5]} 22... Rfc8 {[%clk 0:01:48.4]} 23. e5 {[%clk 0:01:16.1]} 23... Bxf3
{[%clk 0:01:46.9]} 24. gxf3 {[%clk 0:01:16.7]} 24... h5 {[%clk 0:01:34.3]} 25.
Ne2 {[%clk 0:01:02.5]} 25... Nd5 {[%clk 0:01:17.3]} 26. Bd2 {[%clk 0:00:54]}
26... Na4 {[%clk 0:01:12.2]} 27. Nd4 {[%clk 0:00:45.9]} 27... Rc4 {[%clk
0:01:07.8]} 28. Nb3 {[%clk 0:00:36.3]} 28... Rxc2 {[%clk 0:00:55.1]} 0-1

[Event "*** SCC Grand Prix: Titled Tuesday Blitz"]
[Site "Chess.com"]
[Date "2020.06.09"]
[Round "4"]
[White "LittlePeasant"]
[Black "CrushingKings"]
[Result "1-0"]
[WhiteElo "2816"]
[BlackElo "2519"]
[TimeControl "180+1"]
[EndTime "9:38:05 PDT"]
[Termination "LittlePeasant won on time"]

1. d4 {[%clk 0:03:00.9]} 1... g6 {[%clk 0:02:57.1]} 2. c4 {[%clk 0:02:59.6]}
2... Bg7 {[%clk 0:02:57.5]} 3. Nf3 {[%clk 0:02:59.5]} 3... d6 {[%clk 0:02:55.8]}
4. Nc3 {[%clk 0:02:58.8]} 4... c5 {[%clk 0:02:56]} 5. e3 {[%clk 0:02:55.6]} 5...
Nc6 {[%clk 0:02:46]} 6. Be2 {[%clk 0:02:54.4]} 6... Bg4 {[%clk 0:02:46]} 7. O-O
{[%clk 0:02:53]} 7... Nh6 {[%clk 0:01:43.9]} 8. h3 {[%clk 0:02:46.7]} 8... Bxf3
{[%clk 0:01:42.1]} 9. Bxf3 {[%clk 0:02:47.6]} 9... O-O {[%clk 0:01:36.4]} 10. d5
{[%clk 0:02:45.8]} 10... Ne5 {[%clk 0:01:28.7]} 11. Be2 {[%clk 0:02:45.3]} 11...
f5 {[%clk 0:01:23.3]} 12. f4 {[%clk 0:02:35.7]} 12... Nd7 {[%clk 0:01:23]} 13.
Qd3 {[%clk 0:02:32.8]} 13... a6 {[%clk 0:00:49.3]} 14. Bd2 {[%clk 0:02:30.4]}
14... Kh8 {[%clk 0:00:43.8]} 15. Rae1 {[%clk 0:02:27.3]} 15... b5 {[%clk
0:00:43.4]} 16. b3 {[%clk 0:02:20.5]} 16... bxc4 {[%clk 0:00:37.4]} 17. bxc4
{[%clk 0:02:21.4]} 17... Rb8 {[%clk 0:00:37.6]} 18. Kh2 {[%clk 0:02:15.2]} 18...
Rb2 {[%clk 0:00:34.1]} 19. Bc1 {[%clk 0:02:12.5]} 19... Rb7 {[%clk 0:00:33.4]}
20. e4 {[%clk 0:02:12.2]} 20... fxe4 {[%clk 0:00:32.1]} 21. Nxe4 {[%clk
0:02:13.1]} 21... Nf5 {[%clk 0:00:32.4]} 22. Ng5 {[%clk 0:02:04.9]} 22... Qa5
{[%clk 0:00:16.3]} 23. Bg4 {[%clk 0:01:55.4]} 23... Nd4 {[%clk 0:00:04.7]} 24.
Rxe7 {[%clk 0:01:49.5]} 24... Qd8 {[%clk 0:00:04.7]} 25. Nf7+ {[%clk 0:01:16.7]}
25... Rxf7 {[%clk 0:00:04.8]} 26. Rxf7 {[%clk 0:01:17.6]} 26... Kg8 {[%clk
0:00:02.5]} 27. Be6 {[%clk 0:01:15.8]} 1-0

[Event "*** SCC Grand Prix: Titled Tuesday Blitz"]
[Site "Chess.com"]
[Date "2020.06.09"]
[Round "4"]
[White "DrKozerov"]
[Black "annakantane"]
[Result "1-0"]
[WhiteElo "2599"]
[BlackElo "2171"]
[TimeControl "180+1"]
[EndTime "9:38:05 PDT"]
[Termination "DrKozerov won by resignation"]

1. d4 {[%clk 0:03:00.9]} 1... Nf6 {[%clk 0:02:50.6]} 2. c4 {[%clk 0:03:01]} 2...
c5 {[%clk 0:02:49.3]} 3. d5 {[%clk 0:03:00.9]} 3... e6 {[%clk 0:02:48.6]} 4. Nc3
{[%clk 0:03:00.6]} 4... exd5 {[%clk 0:02:49.5]} 5. cxd5 {[%clk 0:03:01.5]} 5...
d6 {[%clk 0:02:49.4]} 6. e4 {[%clk 0:03:02.2]} 6... g6 {[%clk 0:02:50]} 7. Nge2
{[%clk 0:03:02.6]} 7... Bg7 {[%clk 0:02:50.4]} 8. Ng3 {[%clk 0:03:03.1]} 8... h5
{[%clk 0:02:46.6]} 9. Be2 {[%clk 0:02:59.3]} 9... h4 {[%clk 0:02:45.1]} 10. Nf1
{[%clk 0:02:59]} 10... h3 {[%clk 0:02:46]} 11. g3 {[%clk 0:02:58.8]} 11... O-O
{[%clk 0:02:38.4]} 12. Be3 {[%clk 0:02:58.3]} 12... Re8 {[%clk 0:01:39.3]} 13.
Nd2 {[%clk 0:02:57]} 13... Nbd7 {[%clk 0:01:30.7]} 14. O-O {[%clk 0:02:49.6]}
14... Ne5 {[%clk 0:01:28.1]} 15. f3 {[%clk 0:02:45.3]} 15... a6 {[%clk
0:01:21.7]} 16. a4 {[%clk 0:02:44.7]} 16... Rb8 {[%clk 0:01:22.2]} 17. Rb1
{[%clk 0:02:41.1]} 17... Bd7 {[%clk 0:01:19.7]} 18. b4 {[%clk 0:02:35.7]} 18...
cxb4 {[%clk 0:01:04.5]} 19. Rxb4 {[%clk 0:02:36.6]} 19... Nh7 {[%clk 0:00:52.3]}
20. Qb3 {[%clk 0:02:32.9]} 20... Rc8 {[%clk 0:00:45.9]} 21. Bb6 {[%clk
0:02:15.5]} 21... Qf6 {[%clk 0:00:35.1]} 22. Bd4 {[%clk 0:02:05.1]} 22... Qe7
{[%clk 0:00:26.3]} 23. Rxb7 {[%clk 0:02:02.2]} 23... g5 {[%clk 0:00:16.9]} 24.
Bxa6 {[%clk 0:01:55.5]} 24... g4 {[%clk 0:00:11.5]} 25. f4 {[%clk 0:01:53.3]}
25... Nf3+ {[%clk 0:00:08.7]} 26. Nxf3 {[%clk 0:01:52.9]} 26... gxf3 {[%clk
0:00:09.6]} 27. Bxg7 {[%clk 0:01:49.8]} 27... Kxg7 {[%clk 0:00:10.5]} 28. Bb5
{[%clk 0:01:45.1]} 28... Qf6 {[%clk 0:00:10.8]} 29. Nd1 {[%clk 0:01:31.6]} 29...
Qd4+ {[%clk 0:00:10.3]} 30. Nf2 {[%clk 0:01:31.6]} 30... Bxb5 {[%clk 0:00:09.8]}
31. axb5 {[%clk 0:01:28.5]} 31... Rxe4 {[%clk 0:00:09.7]} 32. Qxf3 {[%clk
0:01:27.9]} 32... Re3 {[%clk 0:00:09.4]} 33. Qg4+ {[%clk 0:01:27.7]} 33... Kf8
{[%clk 0:00:09.6]} 34. Qxc8+ {[%clk 0:01:27.9]} 34... Kg7 {[%clk 0:00:09.6]} 35.
Qg4+ {[%clk 0:01:27.4]} 1-0

[Event "*** SCC Grand Prix: Titled Tuesday Blitz"]
[Site "Chess.com"]
[Date "2020.06.09"]
[Round "4"]
[White "VitaliyBernadskiy"]
[Black "TigrVShlyape"]
[Result "0-1"]
[WhiteElo "2698"]
[BlackElo "2907"]
[TimeControl "180+1"]
[EndTime "9:38:08 PDT"]
[Termination "TigrVShlyape won by resignation"]

1. e4 {[%clk 0:03:00.9]} 1... e5 {[%clk 0:02:55.3]} 2. Nf3 {[%clk 0:02:59.8]}
2... Nc6 {[%clk 0:02:55.4]} 3. Bb5 {[%clk 0:02:59.7]} 3... a6 {[%clk 0:02:54.2]}
4. Ba4 {[%clk 0:02:59.2]} 4... Nf6 {[%clk 0:02:54.4]} 5. O-O {[%clk 0:02:59.5]}
5... Be7 {[%clk 0:02:54.3]} 6. Re1 {[%clk 0:02:59.5]} 6... b5 {[%clk 0:02:54.3]}
7. Bb3 {[%clk 0:02:59.1]} 7... d6 {[%clk 0:02:53.1]} 8. c3 {[%clk 0:02:59.4]}
8... O-O {[%clk 0:02:52.1]} 9. h3 {[%clk 0:02:59.8]} 9... Nb8 {[%clk 0:02:52.1]}
10. d4 {[%clk 0:02:59.6]} 10... Nbd7 {[%clk 0:02:52.6]} 11. Nbd2 {[%clk
0:02:59.7]} 11... Bb7 {[%clk 0:02:52.7]} 12. Bc2 {[%clk 0:02:58.7]} 12... Re8
{[%clk 0:02:52.9]} 13. a4 {[%clk 0:02:58]} 13... Bf8 {[%clk 0:02:51.7]} 14. Bd3
{[%clk 0:02:55.2]} 14... c6 {[%clk 0:02:51.4]} 15. b3 {[%clk 0:02:54.5]} 15...
g6 {[%clk 0:02:50.5]} 16. Ba3 {[%clk 0:02:49.5]} 16... Nh5 {[%clk 0:02:44.2]}
17. Bf1 {[%clk 0:02:48.5]} 17... Nf4 {[%clk 0:02:43.3]} 18. g3 {[%clk
0:02:33.1]} 18... Ne6 {[%clk 0:02:42.4]} 19. Qc2 {[%clk 0:02:09.4]} 19... Qb6
{[%clk 0:02:35.4]} 20. Qd3 {[%clk 0:01:37.4]} 20... Rad8 {[%clk 0:02:18.3]} 21.
Qe3 {[%clk 0:01:36.6]} 21... Bg7 {[%clk 0:02:02.6]} 22. Bb2 {[%clk 0:01:24.3]}
22... exd4 {[%clk 0:02:00.7]} 23. cxd4 {[%clk 0:01:24.2]} 23... d5 {[%clk
0:02:00.4]} 24. axb5 {[%clk 0:01:18.1]} 24... axb5 {[%clk 0:01:57.8]} 25. Qc3
{[%clk 0:01:12]} 25... c5 {[%clk 0:01:47.2]} 26. Qa5 {[%clk 0:00:50.8]} 26...
dxe4 {[%clk 0:01:46]} 27. Nxe4 {[%clk 0:00:47]} 27... Nxd4 {[%clk 0:01:40.5]}
28. Nxd4 {[%clk 0:00:47.1]} 28... Bxe4 {[%clk 0:01:30.4]} 29. Qxb5 {[%clk
0:00:24.8]} 29... cxd4 {[%clk 0:01:24.2]} 30. f3 {[%clk 0:00:03.6]} 0-1

[Event "*** SCC Grand Prix: Titled Tuesday Blitz"]
[Site "Chess.com"]
[Date "2020.06.09"]
[Round "4"]
[White "dey2580"]
[Black "Shivagami"]
[Result "1-0"]
[WhiteElo "2444"]
[BlackElo "2269"]
[TimeControl "180+1"]
[EndTime "9:38:15 PDT"]
[Termination "dey2580 won by resignation"]

1. d4 {[%clk 0:03:00.9]} 1... Nf6 {[%clk 0:02:56.4]} 2. Nf3 {[%clk 0:03:00]}
2... d5 {[%clk 0:02:40]} 3. c4 {[%clk 0:02:59]} 3... c6 {[%clk 0:02:37.1]} 4.
Nc3 {[%clk 0:02:56.5]} 4... dxc4 {[%clk 0:02:37.4]} 5. a4 {[%clk 0:02:55.1]}
5... Bf5 {[%clk 0:02:36.9]} 6. e3 {[%clk 0:02:55.3]} 6... e6 {[%clk 0:02:35.2]}
7. Bxc4 {[%clk 0:02:55.5]} 7... Bb4 {[%clk 0:02:35.8]} 8. O-O {[%clk 0:02:54.7]}
8... Nbd7 {[%clk 0:02:35.8]} 9. Qe2 {[%clk 0:02:46.5]} 9... Bg6 {[%clk
0:02:35.6]} 10. Rd1 {[%clk 0:02:39.4]} 10... O-O {[%clk 0:02:24]} 11. Na2 {[%clk
0:02:39.3]} 11... Bd6 {[%clk 0:02:20.4]} 12. Ne5 {[%clk 0:02:38.9]} 12... Bh5
{[%clk 0:02:10.6]} 13. f3 {[%clk 0:02:15.4]} 13... Qc7 {[%clk 0:01:48.1]} 14.
Nxd7 {[%clk 0:01:58]} 14... Nxd7 {[%clk 0:01:23.7]} 15. g4 {[%clk 0:01:37.5]}
15... Bg6 {[%clk 0:01:22.4]} 16. Nc3 {[%clk 0:01:37.1]} 16... e5 {[%clk
0:01:18.8]} 17. d5 {[%clk 0:01:36.4]} 17... Nb6 {[%clk 0:01:14.3]} 18. dxc6
{[%clk 0:01:30.9]} 18... Qxc6 {[%clk 0:01:04.5]} 19. Bb5 {[%clk 0:01:30.4]}
19... Qc5 {[%clk 0:00:55.7]} 20. a5 {[%clk 0:01:23.5]} 20... Nc8 {[%clk
0:00:55.3]} 21. Bd2 {[%clk 0:00:53.9]} 21... f6 {[%clk 0:00:49.5]} 22. Rac1
{[%clk 0:00:52.4]} 22... Bb8 {[%clk 0:00:31.7]} 23. Nd5 {[%clk 0:00:41.6]} 23...
Qc6 {[%clk 0:00:26.5]} 1-0

[Event "*** SCC Grand Prix: Titled Tuesday Blitz"]
[Site "Chess.com"]
[Date "2020.06.09"]
[Round "4"]
[White "PrinceMurad09"]
[Black "abhidabhi"]
[Result "0-1"]
[WhiteElo "2514"]
[BlackElo "2727"]
[TimeControl "180+1"]
[EndTime "9:38:17 PDT"]
[Termination "abhidabhi won by resignation"]

1. e4 {[%clk 0:03:00.9]} 1... e5 {[%clk 0:02:59.4]} 2. Nf3 {[%clk 0:03:00.7]}
2... Nc6 {[%clk 0:03:00.1]} 3. Bc4 {[%clk 0:03:00.3]} 3... Bc5 {[%clk
0:02:59.3]} 4. O-O {[%clk 0:02:59.9]} 4... Nf6 {[%clk 0:02:59.2]} 5. d3 {[%clk
0:03:00.3]} 5... d6 {[%clk 0:02:59.2]} 6. c3 {[%clk 0:03:00.1]} 6... a6 {[%clk
0:02:58.9]} 7. h3 {[%clk 0:02:59.3]} 7... h6 {[%clk 0:02:58.5]} 8. Be3 {[%clk
0:02:52.2]} 8... O-O {[%clk 0:02:47.9]} 9. Nbd2 {[%clk 0:02:40.6]} 9... Re8
{[%clk 0:02:46.7]} 10. Re1 {[%clk 0:02:39.7]} 10... Bxe3 {[%clk 0:02:44.1]} 11.
Rxe3 {[%clk 0:02:37.8]} 11... d5 {[%clk 0:02:40.6]} 12. exd5 {[%clk 0:02:36]}
12... Nxd5 {[%clk 0:02:40.2]} 13. Bxd5 {[%clk 0:02:11.8]} 13... Qxd5 {[%clk
0:02:41.1]} 14. Qb3 {[%clk 0:02:11.2]} 14... Qxb3 {[%clk 0:02:36.1]} 15. axb3
{[%clk 0:01:57.6]} 15... Bf5 {[%clk 0:02:33]} 16. Ne4 {[%clk 0:01:55.3]} 16...
b6 {[%clk 0:02:26.6]} 17. b4 {[%clk 0:01:49.5]} 17... a5 {[%clk 0:02:25.1]} 18.
bxa5 {[%clk 0:01:47]} 18... Nxa5 {[%clk 0:02:22.7]} 19. Ng3 {[%clk 0:01:40.7]}
19... Bh7 {[%clk 0:02:08.6]} 20. Nxe5 {[%clk 0:01:32.1]} 20... Nb3 {[%clk
0:01:48.1]} 21. Rxa8 {[%clk 0:01:22.5]} 21... Rxa8 {[%clk 0:01:49]} 22. Nc6
{[%clk 0:01:17.6]} 22... Kf8 {[%clk 0:01:42.2]} 23. d4 {[%clk 0:00:41.8]} 23...
Na5 {[%clk 0:01:19.8]} 24. Nxa5 {[%clk 0:00:35.3]} 24... Rxa5 {[%clk 0:01:15]}
25. b4 {[%clk 0:00:33.2]} 25... Ra1+ {[%clk 0:01:14.5]} 26. Nf1 {[%clk
0:00:31.2]} 26... Rd1 {[%clk 0:01:12.7]} 27. f4 {[%clk 0:00:08.7]} 27... Bd3
{[%clk 0:01:12.7]} 28. Rg3 {[%clk 0:00:09.2]} 28... Rxf1+ {[%clk 0:01:11.7]} 0-1

[Event "*** SCC Grand Prix: Titled Tuesday Blitz"]
[Site "Chess.com"]
[Date "2020.06.09"]
[Round "4"]
[White "giantslayer83"]
[Black "RaunakSadhwani2005"]
[Result "1-0"]
[WhiteElo "2723"]
[BlackElo "2892"]
[TimeControl "180+1"]
[EndTime "9:38:23 PDT"]
[Termination "giantslayer83 won by resignation"]

1. d4 {[%clk 0:03:00.9]} 1... Nf6 {[%clk 0:02:59.3]} 2. c4 {[%clk 0:03:00.8]}
2... g6 {[%clk 0:02:59.7]} 3. Nc3 {[%clk 0:03:00.2]} 3... Bg7 {[%clk 0:03:00.2]}
4. g3 {[%clk 0:03:00.5]} 4... c5 {[%clk 0:02:59]} 5. Nf3 {[%clk 0:03:00]} 5...
cxd4 {[%clk 0:02:58.8]} 6. Nxd4 {[%clk 0:03:00]} 6... O-O {[%clk 0:02:59.3]} 7.
Bg2 {[%clk 0:03:00]} 7... Nc6 {[%clk 0:02:59.8]} 8. O-O {[%clk 0:02:59.7]} 8...
Qa5 {[%clk 0:03:00.3]} 9. e3 {[%clk 0:02:57.6]} 9... d6 {[%clk 0:02:58.8]} 10.
h3 {[%clk 0:02:42]} 10... Bd7 {[%clk 0:02:53.9]} 11. Nde2 {[%clk 0:02:33]} 11...
a6 {[%clk 0:02:25]} 12. Bd2 {[%clk 0:02:29.6]} 12... Qb6 {[%clk 0:02:23.9]} 13.
b3 {[%clk 0:02:29.1]} 13... Rac8 {[%clk 0:02:23.5]} 14. Rc1 {[%clk 0:02:28.5]}
14... h5 {[%clk 0:02:21]} 15. Nf4 {[%clk 0:02:26.1]} 15... Qd8 {[%clk
0:02:15.6]} 16. Ncd5 {[%clk 0:02:12.7]} 16... Nxd5 {[%clk 0:02:05.8]} 17. Nxd5
{[%clk 0:02:13.6]} 17... h4 {[%clk 0:02:01.7]} 18. g4 {[%clk 0:02:12.8]} 18...
e6 {[%clk 0:02:00.3]} 19. Nf4 {[%clk 0:02:11.3]} 19... Qc7 {[%clk 0:01:56]} 20.
Bc3 {[%clk 0:02:11.1]} 20... Ne5 {[%clk 0:01:55.6]} 21. Bb4 {[%clk 0:02:06.6]}
21... Rfd8 {[%clk 0:01:42.3]} 22. Qxd6 {[%clk 0:02:02.3]} 22... Qxd6 {[%clk
0:01:25.1]} 23. Bxd6 {[%clk 0:02:03.2]} 23... Bc6 {[%clk 0:01:23.4]} 24. Bxe5
{[%clk 0:01:57.4]} 24... Bxe5 {[%clk 0:01:20.5]} 25. Rfd1 {[%clk 0:01:56.7]}
25... Re8 {[%clk 0:00:59.9]} 26. Bxc6 {[%clk 0:01:55.6]} 26... Rxc6 {[%clk
0:01:00.8]} 27. Rd7 {[%clk 0:01:46.9]} 27... b5 {[%clk 0:00:57.9]} 28. Nd3
{[%clk 0:01:45.9]} 28... Bf6 {[%clk 0:00:47.9]} 29. Nb4 {[%clk 0:01:44.4]} 29...
Rcc8 {[%clk 0:00:45.3]} 30. Nxa6 {[%clk 0:01:44.2]} 30... bxc4 {[%clk
0:00:45.4]} 31. Rxc4 {[%clk 0:01:45.1]} 31... Rxc4 {[%clk 0:00:42.2]} 32. bxc4
{[%clk 0:01:46]} 32... Ra8 {[%clk 0:00:42.5]} 33. Nb4 {[%clk 0:01:46]} 33... Bc3
{[%clk 0:00:40.8]} 34. Nd3 {[%clk 0:01:41.6]} 34... Rxa2 {[%clk 0:00:37.7]} 35.
c5 {[%clk 0:01:41.5]} 35... Rc2 {[%clk 0:00:33.7]} 36. c6 {[%clk 0:01:41.6]}
36... Ba5 {[%clk 0:00:16.5]} 37. Ne5 {[%clk 0:01:38.2]} 37... Be1 {[%clk
0:00:16.5]} 38. c7 {[%clk 0:01:33.5]} 38... Bxf2+ {[%clk 0:00:16.1]} 39. Kf1
{[%clk 0:01:33.4]} 39... Kg7 {[%clk 0:00:16.6]} 40. Rxf7+ {[%clk 0:01:32.7]}
40... Kh6 {[%clk 0:00:17.2]} 41. Rxf2 {[%clk 0:01:31.2]} 41... Rxc7 {[%clk
0:00:17]} 42. Rf6 {[%clk 0:01:31]} 1-0